[Event "Athens of East GM-Open 2019"]
[Site "Madurai"]
[Date "2019.08.11"]
[Round "1.11"]
[White "Bhagyashree Patil"]
[Black "Karthikeyan, P.."]
[Result "1/2-1/2"]
[ECO "B59"]
[WhiteElo "1703"]
[BlackElo "2415"]
[Annotator "NA"]
[PlyCount "163"]
[EventDate "2019.08.11"]
[EventType "swiss"]
[EventCountry "IND"]
[SourceTitle "playchess.com"]
[Source "ChessBase"]
[SourceQuality "1"]
[TimeControl "5400+30"]

1. e4 {[%emt 0:00:00]} c5 {[%emt 0:00:00]} 2. Nf3 {[%emt 0:00:00]} d6 {[%emt 0:00:00]} 3. d4 {[%emt 0:00:00]} cxd4 {[%emt 0:00:00]} 4. Nxd4 {[%emt 0:00:05]} Nf6 {[%emt 0:00:00]} 5. Nc3 {[%emt 0:00:16]} Nc6 {[%emt 0:00:00]} 6. Be2 {[%emt 0:03:16]} e5 {[%emt 0:00:11]} 7. Nb3 {[%emt 0:02:20]} Be7 {[%emt 0:00:57]} 8. O-O {[%emt 0:00:36]} a5 {[%emt 0:00:29]} 9. a4 {[%emt 0:02:03]} Be6 {[%emt 0:01:02]} 10. Be3 {[%emt 0:01:36]} O-O {[%emt 0:00:11]} 11. Nd2 {[%emt 0:04:27]} Rc8 {[%emt 0:23:19]} 12. Nc4 {[%emt 0:06:36]} Nd4 {[%emt 0:01:39]} 13. Bxd4 {[%emt 0:03:27]} Bxc4 {[%emt 0:00:36]} 14. Be3 {[%emt 0:01:21]} Be6 {[%emt 0:04:47]} 15. f3 {[%emt 0:03:05]} d5 {[%emt 0:03:00]} 16. exd5 {[%emt 0:01:12]} Rxc3 {[%emt 0:04:53]} 17. bxc3 {[%emt 0:00:15]} Nxd5 {[%emt 0:00:04]} 18. Bd2 {[%emt 0:01:01]} Bg5 {[%emt 0:02:22]} 19. Rb1 {[%emt 0:07:05]} Qe7 {[%emt 0:01:25]} 20. Kh1 {[%emt 0:06:57]} Rc8 {[%emt 0:05:34]} 21. c4 {[%emt 0:09:53]} Nf4 {[%emt 0:03:34]} 22. Re1 {[%emt 0:07:33]} Bh4 {[%emt 0:09:51]} 23. Bxa5 {[%emt 0:15:21]} Bxe1 {[%emt 0:09:01]} 24. Qxe1 {[%emt 0:00:23]} Nxe2 {[%emt 0:01:57]} 25. Qxe2 {[%emt 0:00:03]} Bxc4 {[%emt 0:00:15]} 26. Qe4 {[%emt 0:01:30]} Ba6 {[%emt 0:00:31]} 27. Bb4 {[%emt 0:01:12]} Qc7 {[%emt 0:02:35]} 28. Re1 {[%emt 0:06:32]} f6 {[%emt 0:01:29]} 29. Qd5+ {[%emt 0:00:38]} Qf7 {[%emt 0:01:03]} 30. Qd6 {[%emt 0:03:09]} h6 {[%emt 0:02:41]} 31. c3 {[%emt 0:00:56]} Qe8 {[%emt 0:02:19]} 32. Rd1 {[%emt 0:01:40]} Kh7 {[%emt 0:02:42]} 33. Qd7 {[%emt 0:03:30]} Qxd7 {[%emt 0:00:52]} 34. Rxd7 {[%emt 0:00:05]} h5 {[%emt 0:00:17]} 35. h4 {[%emt 0:00:58]} Kh6 {[%emt 0:02:04]} 36. Kg1 {[%emt 0:01:27]} g5 {[%emt 0:01:04]} 37. hxg5+ {[%emt 0:00:38]} Kxg5 {[%emt 0:00:07]} 38. Kf2 {[%emt 0:00:59]} h4 {[%emt 0:00:48]} 39. Rg7+ {[%emt 0:01:38]} Kf5 {[%emt 0:00:30]} 40. Rh7 {[%emt 0:00:34]} Rc4 {[%emt 0:00:29]} 41. Ke3 {[%emt 0:03:07]} Kg6 {[%emt 0:01:24]} 42. Rh8 {[%emt 0:00:55]} Kg7 {[%emt 0:00:30]} 43. Rd8 {[%emt 0:00:48]} Kg6 {[%emt 0:01:11]} 44. Rh8 {[%emt 0:00:10]} Kf5 {[%emt 0:00:35]} 45. Rh7 {[%emt 0:00:49]} Rf4 {[%emt 0:00:09]} 46. Rh8 {[%emt 0:02:06]} Bf1 {[%emt 0:01:56]} 47. Kf2 {[%emt 0:00:22]} Bc4 {[%emt 0:00:02]} 48. Rd8 {[%emt 0:00:47]} Kg6 {[%emt 0:01:56]} 49. Rd7 {[%emt 0:00:34]} Ba6 {[%emt 0:01:11]} 50. Ke3 {[%emt 0:00:01]} Rc4 {[%emt 0:00:46]} 51. Kf2 {[%emt 0:01:02]} Rc8 {[%emt 0:00:10]} 52. Kg1 {[%emt 0:00:28]} Rc4 {[%emt 0:01:50]} 53. Kf2 {[%emt 0:00:01]} Rf4 {[%emt 0:00:25]} 54. Rd8 {[%emt 0:00:50]} Kf5 {[%emt 0:01:28]} 55. Rd7 {[%emt 0:00:22]} Rc4 {[%emt 0:01:06]} 56. Rh7 {[%emt 0:00:22]} Kg6 {[%emt 0:03:22]} 57. Rh8 {[%emt 0:00:40]} Kg7 {[%emt 0:01:25]} 58. Rd8 {[%emt 0:00:06]} Rf4 {[%emt 0:00:20]} 59. Rd7+ {[%emt 0:00:46]} Kg6 {[%emt 0:00:20]} 60. Ke3 {[%emt 0:00:48]} h3 {[%emt 0:00:58]} 61. g3 {[%emt 0:00:34]} Rd4 {[%emt 0:02:02]} 62. Rxd4 {[%emt 0:00:34]} exd4+ {[%emt 0:00:05]} 63. Kf2 {[%emt 0:00:07]} d3 {[%emt 0:00:23]} 64. c4 {[%emt 0:00:08]} Bxc4 {[%emt 0:00:05]} 65. g4 {[%emt 0:00:35]} Bd5 {[%emt 0:00:08]} 66. Kg3 {[%emt 0:00:35]} h2 {[%emt 0:00:24]} 67. Kxh2 {[%emt 0:00:02]} Bxf3 {[%emt 0:00:04]} 68. Kg3 {[%emt 0:00:06]} Bd1 {[%emt 0:01:04]} 69. a5 {[%emt 0:00:03]} Kf7 {[%emt 0:00:09]} 70. Kf4 {[%emt 0:00:59]} Ke6 {[%emt 0:00:10]} 71. Bc3 {[%emt 0:01:44]} Be2 {[%emt 0:00:18]} 72. g5 {[%emt 0:00:30]} fxg5+ {[%emt 0:00:54]} 73. Kxg5 {[%emt 0:00:02]} Kd5 {[%emt 0:00:08]} 74. Kf4 {[%emt 0:00:07]} Kc4 {[%emt 0:00:02]} 75. Bd2 {[%emt 0:00:28]} Kd4 {[%emt 0:00:01]} 76. Be1 {[%emt 0:00:02]} Bh5 {[%emt 0:00:03]} 77. Bd2 {[%emt 0:00:10]} Be8 {[%emt 0:00:12]} 78. Be1 {[%emt 0:00:06]} Bb5 {[%emt 0:00:05]} 79. Bd2 {[%emt 0:00:08]} Kc4 {[%emt 0:00:05]} 80. Ke3 {[%emt 0:00:19]} Kb3 {[%emt 0:00:01]} 81. Kf2 {[%emt 0:00:55]} Kc2 {[%emt 0:00:16]} 82. Ke1 {[%emt 0:00:40]} 1/2-1/2

[Event "Athens of East GM-Open 2019"]
[Site "Madurai"]
[Date "2019.08.11"]
[Round "1.12"]
[White "Das, Sayantan"]
[Black "Subramanian, R M"]
[Result "1-0"]
[ECO "A27"]
[WhiteElo "2409"]
[BlackElo "1790"]
[Annotator "NA"]
[PlyCount "57"]
[EventDate "2019.08.11"]
[EventType "swiss"]
[EventCountry "IND"]
[SourceTitle "playchess.com"]
[Source "ChessBase"]
[SourceQuality "1"]
[TimeControl "5400+30"]

1. c4 {[%emt 0:00:00]} e5 {[%emt 0:00:00]} 2. Nc3 {[%emt 0:00:12]} Nc6 {[%emt 0:00:21]} 3. Nf3 {[%emt 0:01:37]} f5 {[%emt 0:01:11]} 4. d4 {[%emt 0:01:55]} e4 {[%emt 0:01:31]} 5. Ng5 {[%emt 0:01:05]} Bb4 {[%emt 0:04:16]} 6. Bf4 {[%emt 0:09:38]} Qf6 {[%emt 0:14:08]} 7. e3 {[%emt 0:07:11]} Bxc3+ {[%emt 0:01:17]} 8. bxc3 {[%emt 0:00:07]} d6 {[%emt 0:01:40]} 9. c5 {[%emt 0:07:44]} dxc5 {[%emt 0:02:38]} 10. Bc4 {[%emt 0:02:40]} Nge7 {[%emt 0:03:02]} 11. h4 {[%emt 0:08:30]} Bd7 {[%emt 0:13:55]} 12. Nf7 {[%emt 0:06:36]} Na5 {[%emt 0:11:07]} 13. Bg5 {[%emt 0:01:49]} Qc6 {[%emt 0:02:59]} 14. d5 {[%emt 0:02:57]} Qb6 {[%emt 0:07:42]} 15. Rb1 {[%emt 0:02:32]} Kxf7 {[%emt 0:02:12]} 16. Rxb6 {[%emt 0:00:24]} axb6 {[%emt 0:02:22]} 17. Be2 {[%emt 0:00:41]} Nc8 {[%emt 0:03:18]} 18. Bf4 {[%emt 0:01:19]} Nd6 {[%emt 0:00:42]} 19. Bxd6 {[%emt 0:00:42]} cxd6 {[%emt 0:00:02]} 20. Qb1 {[%emt 0:00:08]} c4 {[%emt 0:04:17]} 21. g4 {[%emt 0:01:41]} Rhe8 {[%emt 0:04:06]} 22. gxf5 {[%emt 0:01:41]} Bxf5 {[%emt 0:00:10]} 23. Rg1 {[%emt 0:00:57]} Re5 {[%emt 0:02:25]} 24. Qxb6 {[%emt 0:00:56]} Ra6 {[%emt 0:00:54]} 25. Qc7+ {[%emt 0:00:25]} Re7 {[%emt 0:01:08]} 26. Rxg7+ {[%emt 0:00:10]} Kxg7 {[%emt 0:00:03]} 27. Qxe7+ {[%emt 0:00:08]} Kg8 {[%emt 0:00:11]} 28. Bh5 {[%emt 0:02:00]} Bg6 {[%emt 0:00:18]} 29. Bg4 {[%emt 0:00:07]} 1-0

[Event "Athens of East GM-Open 2019"]
[Site "Madurai"]
[Date "2019.08.11"]
[Round "1.13"]
[White "Aravinth Shanmugam S"]
[Black "Harshavardhan G B"]
[Result "0-1"]
[ECO "B40"]
[WhiteElo "1788"]
[BlackElo "2391"]
[Annotator "NA"]
[PlyCount "54"]
[EventDate "2019.08.11"]
[EventType "swiss"]
[EventCountry "IND"]
[SourceTitle "playchess.com"]
[Source "ChessBase"]
[SourceQuality "1"]
[TimeControl "5400+30"]

1. e4 {[%emt 0:00:00]} c5 {[%emt 0:00:33]} 2. Nf3 {[%emt 0:00:00]} e6 {[%emt 0:00:07]} 3. Nc3 {[%emt 0:00:48]} a6 {[%emt 0:00:09]} 4. g3 {[%emt 0:01:18]} b5 {[%emt 0:00:22]} 5. Bg2 {[%emt 0:00:39]} Bb7 {[%emt 0:00:07]} 6. d3 {[%emt 0:00:21]} d6 {[%emt 0:02:27]} 7. O-O {[%emt 0:01:46]} Nf6 {[%emt 0:00:34]} 8. a3 {[%emt 0:03:41]} Be7 {[%emt 0:01:53]} 9. Be3 {[%emt 0:06:15]} O-O {[%emt 0:00:55]} 10. Ne1 {[%emt 0:01:03]} Nc6 {[%emt 0:00:59]} 11. d4 {[%emt 0:23:53]} cxd4 {[%emt 0:01:34]} 12. Bxd4 {[%emt 0:01:57]} Nxd4 {[%emt 0:00:07]} 13. Qxd4 {[%emt 0:00:08]} Nd7 {[%emt 0:01:17]} 14. Rd1 {[%emt 0:05:12]} Qb6 {[%emt 0:01:43]} 15. Nf3 {[%emt 0:03:18]} Rfc8 {[%emt 0:06:32]} 16. Rfe1 {[%emt 0:05:58]} Qxd4 {[%emt 0:02:40]} 17. Rxd4 {[%emt 0:01:36]} Nb6 {[%emt 0:00:31]} 18. e5 {[%emt 0:04:33]} Bxf3 {[%emt 0:02:34]} 19. Bxf3 {[%emt 0:01:54]} dxe5 {[%emt 0:00:36]} 20. Rd3 {[%emt 0:01:00]} Rab8 {[%emt 0:00:39]} 21. Kg2 {[%emt 0:08:07]} Rc7 {[%emt 0:02:25]} 22. Re2 {[%emt 0:02:51]} Nc4 {[%emt 0:00:52]} 23. Nd1 {[%emt 0:01:09]} f5 {[%emt 0:00:08]} 24. b3 {[%emt 0:03:13]} e4 {[%emt 0:00:39]} 25. Bxe4 {[%emt 0:00:05]} fxe4 {[%emt 0:00:06]} 26. Rxe4 {[%emt 0:00:04]} Nxa3 {[%emt 0:00:47]} 27. Rxe6 {[%emt 0:00:09]} Nxc2 {[%emt 0:00:09]} 0-1

[Event "Athens of East GM-Open 2019"]
[Site "Madurai"]
[Date "2019.08.11"]
[Round "1.14"]
[White "Muthaiah AL"]
[Black "Alalwan, Sajjad Abbas Khudhai"]
[Result "1-0"]
[ECO "D40"]
[WhiteElo "2384"]
[BlackElo "1784"]
[Annotator "NA"]
[PlyCount "33"]
[EventDate "2019.08.11"]
[EventType "swiss"]
[EventCountry "IND"]
[SourceTitle "playchess.com"]
[Source "ChessBase"]
[SourceQuality "1"]
[TimeControl "5400+30"]

1. c4 {[%emt 0:00:08]} Nf6 {[%emt 0:00:00]} 2. Nc3 {[%emt 0:00:27]} c5 {[%emt 0:03:32]} 3. e3 {[%emt 0:02:30]} e6 {[%emt 0:01:04]} 4. Nf3 {[%emt 0:01:31]} Nc6 {[%emt 0:01:55]} 5. d4 {[%emt 0:00:19]} d5 {[%emt 0:00:07]} 6. a3 {[%emt 0:00:30]} b6 {[%emt 0:13:32]} 7. cxd5 {[%emt 0:06:25]} exd5 {[%emt 0:05:26]} 8. Bb5 {[%emt 0:02:33]} Bd7 {[%emt 0:09:38]} 9. Ne5 {[%emt 0:21:53]} Nxe5 {[%emt 0:22:19]} 10. dxe5 {[%emt 0:00:11]} Bxb5 {[%emt 0:00:03]} 11. Nxb5 {[%emt 0:00:23]} a6 {[%emt 0:00:21]} 12. Nc3 {[%emt 0:01:03]} d4 {[%emt 0:00:19]} 13. exf6 {[%emt 0:06:51]} dxc3 {[%emt 0:00:06]} 14. Qa4+ {[%emt 0:00:10]} b5 {[%emt 0:02:37]} 15. Qe4+ {[%emt 0:00:18]} Kd7 {[%emt 0:00:01]} 16. fxg7 {[%emt 0:00:17]} Bxg7 {[%emt 0:01:29]} 17. Qg4+ {[%emt 0:00:13]} 1-0

[Event "Athens of East GM-Open 2019"]
[Site "Madurai"]
[Date "2019.08.11"]
[Round "1.15"]
[White "Babul, Mollick"]
[Black "Konguvel, Ponnuswamy"]
[Result "0-1"]
[ECO "B20"]
[WhiteElo "1783"]
[BlackElo "2343"]
[Annotator "NA"]
[PlyCount "36"]
[EventDate "2019.08.11"]
[EventType "swiss"]
[EventCountry "IND"]
[SourceTitle "playchess.com"]
[Source "ChessBase"]
[SourceQuality "1"]
[TimeControl "5400+30"]

1. e4 {[%emt 0:00:32]} c5 {[%emt 0:00:00]} 2. Bc4 {[%emt 0:02:23]} Nc6 {[%emt 0:03:25]} 3. Nf3 {[%emt 0:02:54]} e6 {[%emt 0:00:27]} 4. Nc3 {[%emt 0:03:32]} a6 {[%emt 0:04:49]} 5. a4 {[%emt 0:03:02]} Nf6 {[%emt 0:02:19]} 6. d4 {[%emt 0:02:34]} d5 {[%emt 0:05:29]} 7. exd5 {[%emt 0:06:45]} exd5 {[%emt 0:00:10]} 8. Be2 {[%emt 0:01:08]} Be7 {[%emt 0:03:56]} 9. O-O {[%emt 0:02:04]} O-O {[%emt 0:00:12]} 10. h3 {[%emt 0:00:48]} Bf5 {[%emt 0:23:12]} 11. Bg5 {[%emt 0:11:00]} h6 {[%emt 0:07:04]} 12. Bh4 {[%emt 0:03:59]} Re8 {[%emt 0:11:06]} 13. Rc1 {[%emt 0:00:55]} g5 {[%emt 0:04:03]} 14. Bg3 {[%emt 0:01:08]} Ne4 {[%emt 0:00:12]} 15. Bh2 {[%emt 0:02:58]} cxd4 {[%emt 0:01:19]} 16. Nxd4 {[%emt 0:01:25]} Nxd4 {[%emt 0:00:30]} 17. Qxd4 {[%emt 0:01:35]} Bf6 {[%emt 0:00:08]} 18. Qxd5 {[%emt 0:08:35]} Nxc3 {[%emt 0:00:31]} 0-1

[Event "Athens of East GM-Open 2019"]
[Site "Madurai"]
[Date "2019.08.11"]
[Round "1.16"]
[White "Rajesh, V A V"]
[Black "Sai Kiran Y"]
[Result "1-0"]
[ECO "D36"]
[WhiteElo "2368"]
[BlackElo "1780"]
[Annotator "NA"]
[PlyCount "103"]
[EventDate "2019.08.11"]
[EventType "swiss"]
[EventCountry "IND"]
[SourceTitle "playchess.com"]
[Source "ChessBase"]
[SourceQuality "1"]
[TimeControl "5400+30"]

1. d4 {[%emt 0:00:00]} Nf6 {[%emt 0:00:00]} 2. c4 {[%emt 0:00:00]} e6 {[%emt 0:00:00]} 3. Nc3 {[%emt 0:00:00]} d5 {[%emt 0:00:00]} 4. cxd5 {[%emt 0:00:47]} exd5 {[%emt 0:00:00]} 5. Bg5 {[%emt 0:00:34]} Be7 {[%emt 0:02:36]} 6. e3 {[%emt 0:00:06]} O-O {[%emt 0:00:09]} 7. Bd3 {[%emt 0:00:41]} Nbd7 {[%emt 0:01:48]} 8. Qc2 {[%emt 0:00:09]} Re8 {[%emt 0:04:15]} 9. Nge2 {[%emt 0:00:06]} c6 {[%emt 0:01:03]} 10. O-O {[%emt 0:00:20]} h6 {[%emt 0:01:05]} 11. Bh4 {[%emt 0:00:15]} Ne4 {[%emt 0:00:54]} 12. Bxe7 {[%emt 0:23:16]} Qxe7 {[%emt 0:01:12]} 13. b4 {[%emt 0:04:12]} Ndf6 {[%emt 0:00:42]} 14. b5 {[%emt 0:00:13]} Ng4 {[%emt 0:28:21]} 15. Bxe4 {[%emt 0:07:40]} dxe4 {[%emt 0:00:20]} 16. h3 {[%emt 0:00:34]} Nf6 {[%emt 0:00:04]} 17. bxc6 {[%emt 0:01:01]} bxc6 {[%emt 0:00:23]} 18. Na4 {[%emt 0:01:01]} Ba6 {[%emt 0:04:58]} 19. Nc5 {[%emt 0:00:09]} Bxe2 {[%emt 0:00:44]} 20. Qxe2 {[%emt 0:00:06]} Nd5 {[%emt 0:00:17]} 21. Qa6 {[%emt 0:18:49]} Rad8 {[%emt 0:04:28]} 22. Qxc6 {[%emt 0:06:08]} Rd6 {[%emt 0:00:20]} 23. Qb5 {[%emt 0:00:12]} Red8 {[%emt 0:03:01]} 24. Qb7 {[%emt 0:03:18]} Qh4 {[%emt 0:01:31]} 25. Kh2 {[%emt 0:03:54]} f5 {[%emt 0:07:43]} 26. g3 {[%emt 0:05:33]} Qh5 {[%emt 0:02:04]} 27. Qb3 {[%emt 0:00:28]} Rg6 {[%emt 0:02:25]} 28. Qd1 {[%emt 0:04:46]} Qg5 {[%emt 0:00:16]} 29. Qe2 {[%emt 0:01:14]} Kh7 {[%emt 0:03:30]} 30. Rac1 {[%emt 0:03:29]} Re8 {[%emt 0:08:52]} 31. Rg1 {[%emt 0:03:41]} Rb8 {[%emt 0:13:43]} 32. Nd7 {[%emt 0:00:30]} Rd8 {[%emt 0:00:38]} 33. Ne5 {[%emt 0:00:06]} Nb4 {[%emt 0:05:32]} 34. a3 {[%emt 0:00:41]} Nd3 {[%emt 0:00:58]} 35. Nxd3 {[%emt 0:00:05]} exd3 {[%emt 0:00:03]} 36. Qxd3 {[%emt 0:00:05]} h5 {[%emt 0:00:30]} 37. Rc5 {[%emt 0:00:04]} Rf8 {[%emt 0:00:32]} 38. h4 {[%emt 0:00:39]} Qg4 {[%emt 0:00:02]} 39. Qd1 {[%emt 0:00:15]} Qe4 {[%emt 0:00:17]} 40. Re5 {[%emt 0:00:12]} Qb7 {[%emt 0:00:33]} 41. Qxh5+ {[%emt 0:01:33]} Rh6 {[%emt 0:00:02]} 42. Qg5 {[%emt 0:00:11]} Qb2 {[%emt 0:00:31]} 43. Rxf5 {[%emt 0:00:40]} Rg6 {[%emt 0:01:42]} 44. Qh5+ {[%emt 0:01:20]} Rh6 {[%emt 0:00:02]} 45. Qg4 {[%emt 0:00:10]} Rhf6 {[%emt 0:00:28]} 46. Rxf6 {[%emt 0:00:05]} Rxf6 {[%emt 0:00:03]} 47. Rg2 {[%emt 0:00:10]} Qxa3 {[%emt 0:00:14]} 48. Qe4+ {[%emt 0:00:51]} Kg8 {[%emt 0:00:09]} 49. f4 {[%emt 0:00:04]} Rb6 {[%emt 0:00:20]} 50. Kh3 {[%emt 0:01:19]} a5 {[%emt 0:00:03]} 51. Rc2 {[%emt 0:00:15]} Rb8 {[%emt 0:00:51]} 52. Qe6+ {[%emt 0:00:07]} 1-0

[Event "Athens of East GM-Open 2019"]
[Site "Madurai"]
[Date "2019.08.11"]
[Round "1.17"]
[White "Harshit Ranjan Sahu"]
[Black "Raja Rithvik R"]
[Result "0-1"]
[ECO "B23"]
[WhiteElo "1778"]
[BlackElo "2357"]
[Annotator "NA"]
[PlyCount "52"]
[EventDate "2019.08.11"]
[EventType "swiss"]
[EventCountry "IND"]
[SourceTitle "playchess.com"]
[Source "ChessBase"]
[SourceQuality "1"]
[TimeControl "5400+30"]

1. e4 {[%emt 0:00:00]} c5 {[%emt 0:00:00]} 2. Nc3 {[%emt 0:00:00]} Nc6 {[%emt 0:00:27]} 3. f4 {[%emt 0:00:39]} g6 {[%emt 0:00:22]} 4. Nf3 {[%emt 0:02:02]} Bg7 {[%emt 0:00:11]} 5. Bc4 {[%emt 0:00:09]} e6 {[%emt 0:00:58]} 6. O-O {[%emt 0:00:17]} Nge7 {[%emt 0:00:07]} 7. Qe1 {[%emt 0:00:19]} O-O {[%emt 0:01:06]} 8. d3 {[%emt 0:00:31]} d5 {[%emt 0:02:39]} 9. Bb3 {[%emt 0:00:28]} Na5 {[%emt 0:09:06]} 10. Qh4 {[%emt 0:05:14]} Nec6 {[%emt 0:13:58]} 11. Ng5 {[%emt 0:09:10]} h6 {[%emt 0:02:05]} 12. f5 {[%emt 0:00:25]} Nxb3 {[%emt 0:09:07]} 13. f6 {[%emt 0:00:42]} Nxc1 {[%emt 0:00:36]} 14. fxg7 {[%emt 0:07:35]} Kxg7 {[%emt 0:00:25]} 15. Rxf7+ {[%emt 0:00:16]} Rxf7 {[%emt 0:00:04]} 16. Qxh6+ {[%emt 0:00:07]} Kxh6 {[%emt 0:00:03]} 17. Nxf7+ {[%emt 0:00:07]} Kg7 {[%emt 0:00:04]} 18. Nxd8 {[%emt 0:00:07]} Nxd8 {[%emt 0:00:13]} 19. Rxc1 {[%emt 0:00:07]} d4 {[%emt 0:00:33]} 20. Ne2 {[%emt 0:01:51]} e5 {[%emt 0:00:07]} 21. c3 {[%emt 0:00:06]} Nc6 {[%emt 0:00:26]} 22. cxd4 {[%emt 0:00:18]} cxd4 {[%emt 0:00:02]} 23. a3 {[%emt 0:00:13]} Bg4 {[%emt 0:00:10]} 24. Ng3 {[%emt 0:00:06]} Rc8 {[%emt 0:00:20]} 25. Rc5 {[%emt 0:00:19]} b6 {[%emt 0:00:16]} 26. Rd5 {[%emt 0:00:20]} Be6 {[%emt 0:00:07]} 0-1

[Event "Athens of East GM-Open 2019"]
[Site "Madurai"]
[Date "2019.08.11"]
[Round "1.18"]
[White "Nitin, S.."]
[Black "Dangi, Mani Raj"]
[Result "1-0"]
[ECO "B90"]
[WhiteElo "2385"]
[BlackElo "1777"]
[Annotator "NA"]
[PlyCount "73"]
[EventDate "2019.08.11"]
[EventType "swiss"]
[EventCountry "IND"]
[SourceTitle "playchess.com"]
[Source "ChessBase"]
[SourceQuality "1"]
[TimeControl "5400+30"]

1. e4 {[%emt 0:00:05]} c5 {[%emt 0:00:23]} 2. Nf3 {[%emt 0:00:10]} d6 {[%emt 0:00:29]} 3. d4 {[%emt 0:00:11]} cxd4 {[%emt 0:01:20]} 4. Nxd4 {[%emt 0:00:19]} Nc6 {[%emt 0:00:23]} 5. Nc3 {[%emt 0:01:16]} Nf6 {[%emt 0:01:18]} 6. f3 {[%emt 0:00:14]} a6 {[%emt 0:01:51]} 7. Be3 {[%emt 0:00:11]} e5 {[%emt 0:02:36]} 8. Nb3 {[%emt 0:00:08]} Be6 {[%emt 0:00:14]} 9. Nd5 {[%emt 0:06:11]} Bxd5 {[%emt 0:04:33]} 10. exd5 {[%emt 0:00:12]} Na5 {[%emt 0:04:01]} 11. Be2 {[%emt 0:02:02]} Rc8 {[%emt 0:00:27]} 12. O-O {[%emt 0:01:06]} Nc4 {[%emt 0:00:28]} 13. Bxc4 {[%emt 0:00:10]} Rxc4 {[%emt 0:00:13]} 14. Qd2 {[%emt 0:02:06]} b6 {[%emt 0:01:15]} 15. Qd3 {[%emt 0:00:39]} b5 {[%emt 0:03:48]} 16. Nd2 {[%emt 0:03:22]} Rh4 {[%emt 0:00:48]} 17. Bf2 {[%emt 0:01:06]} Nh5 {[%emt 0:08:18]} 18. Bxh4 {[%emt 0:01:13]} Qxh4 {[%emt 0:00:02]} 19. a4 {[%emt 0:00:57]} Nf4 {[%emt 0:00:18]} 20. Qe4 {[%emt 0:03:20]} g6 {[%emt 0:01:43]} 21. axb5 {[%emt 0:00:59]} f5 {[%emt 0:00:18]} 22. Qe1 {[%emt 0:02:42]} Qg5 {[%emt 0:00:56]} 23. g3 {[%emt 0:00:21]} Be7 {[%emt 0:05:42]} 24. bxa6 {[%emt 0:00:48]} O-O {[%emt 0:01:19]} 25. a7 {[%emt 0:00:08]} Ra8 {[%emt 0:00:06]} 26. Nc4 {[%emt 0:03:10]} Bd8 {[%emt 0:00:14]} 27. Kh1 {[%emt 0:00:23]} Nxd5 {[%emt 0:00:48]} 28. Qd1 {[%emt 0:00:11]} Ne7 {[%emt 0:02:36]} 29. Qxd6 {[%emt 0:00:13]} f4 {[%emt 0:00:51]} 30. Qe6+ {[%emt 0:00:29]} Kf8 {[%emt 0:00:10]} 31. Nxe5 {[%emt 0:00:11]} Qf5 {[%emt 0:00:17]} 32. Qxf5+ {[%emt 0:00:59]} gxf5 {[%emt 0:00:02]} 33. Rfd1 {[%emt 0:00:26]} Ke8 {[%emt 0:00:06]} 34. gxf4 {[%emt 0:00:10]} Bb6 {[%emt 0:59:07]} 35. Ra6 {[%emt 0:00:11]} Nc8 {[%emt 0:00:00]} 36. Nc6 {[%emt 0:00:21]} Bc7 {[%emt 0:00:00]} 37. b4 {[%emt 0:00:15]} 1-0